Cogmind - Beta 13 @@@ ROGUE MODE // 2024.03.18 @ 19:09:07 Player: Waste Result: Destroyed self with Grenade Launcher Performance ------------- Evolutions (0) 0 Regions Visited (3) 600 Robots Destroyed (35) 175 Value Destroyed (854) 854 Prototype IDs (0) 0 Alien Tech Used (0) 0 Bonus (0) 0 TOTAL SCORE: 1629 Bonus ------- None Cogmind --------- Core Integrity 0/250 Matter 230/300 Energy 250/250 System Corruption 1% Temperature Cool (0) Movement Walking (120) Location -10/Subcaves Parts ------- > --- POWER (1) -------- Ion Engine (fused) > --- PROPULSION (2) --- Aluminum Leg > --- UTILITY (2) ------ (None) > --- WEAPON (2) ------- Grenade Launcher > --- INVENTORY (5) ---- Light Ion Engine Light Treads High-capacity Matter Pod (200) Assault Rifle Ripper Peak State ------------ > --- POWER ------------ Ion Engine > --- PROPULSION ------- Aluminum Leg Aluminum Leg > --- UTILITY ---------- Scrap Shield > --- WEAPON ----------- Assault Rifle Ripper > --- INVENTORY -------- Light Ion Engine Light Treads High-capacity Matter Pod Grenade Launcher Grenade Launcher [Rating: 12] Favorites ----------- Power Ion Engine Engine Ion Engine Propulsion Aluminum Leg Leg Aluminum Leg Utility Large Storage Unit Device Heat Sink Storage Large Storage Unit Protection Scrap Shield Weapon Assault Rifle Energy Gun Medium Laser Energy Cannon Subdweller Beam Cannon Ballistic Gun Assault Rifle Launcher Grenade Launcher Slashing Weapon Mining Claw Build | -11 -10 -10 -10 ------- Run | Yrd Mat Min Sub Slots Evolved . | . . . . Power . | . . . . Propulsion . | . . . . Utility . | . . . . Weapon . | . . . . Parts Attached 39 | . 16 2 21 Power 3 | . 3 . . Engine 3 | . 3 . . Core . | . . . . Reactor . | . . . . Propulsion 6 | . 5 1 . Treads . | . . . . Leg 6 | . 5 1 . Wheel . | . . . . Hover . | . . . . Flight . | . . . . Utility 7 | . 2 1 4 Device 2 | . 1 1 . Storage 1 | . 1 . . Processor . | . . . . Hackware . | . . . . Protection 4 | . . . 4 Artifact . | . . . . Weapon 23 | . 6 . 17 Energy Gun 3 | . 3 . . Energy Cannon 2 | . . . 2 Ballistic Gun 3 | . 2 . 1 Ballistic Cannon . | . . . . Launcher 8 | . 1 . 7 Special Weapon . | . . . . Impact Weapon . | . . . . Slashing Weapon 7 | . . . 7 Piercing Weapon . | . . . . Special Melee Weapon . | . . . . Unidentified Prototypes . | . . . . Parts Lost 9 | . 4 . 5 Power 1 | . 1 . . Propulsion 1 | . . . 1 Utility 1 | . . . 1 Weapon 6 | . 3 . 3 Highest Loss Streak 2 | . 2 . 2 To Critical Strikes . | . . . . Average Slot Usage (%) 94 | . 98 100 90 Engine 13 | . 13 14 14 Leg 28 | . 28 28 28 Device 6 | . 13 14 . Storage 10 | . 14 14 6 Protection 6 | . . . 12 Energy Gun 5 | . 13 . . Energy Cannon 2 | . . . 4 Ballistic Gun 13 | . 14 28 10 Launcher 2 | . . . 4 Slashing Weapon 4 | . . . 8 Naked Turns . | . . . . Heaviest Build 38 | 12 31 30 38 Greatest Support 20 | 20 20 20 20 Greatest Overweight (x) 1 | . 1 1 1 Average Overweight (x) . | . . 1 . Largest Inventory Capacity 15 | . 15 15 15 Average Capacity 11 | . 14 15 9 Most Carried 15 | . 15 15 15 Average Carried 11 | . 13 15 8 Final Capacity 15 | 8 15 15 5 Final Carried 15 | 6 15 15 5 Class Distribution -------------------- 60% | Scavenger-Mutant 39% | Mutant Dominant Class ---------------- Scavenger-Mutant | -10/Materials Scavenger-Mutant | -10/Mines Mutant | -10/Subcaves Resources | -11 -10 -10 -10 ----------- Run | Yrd Mat Min Sub Matter Collected 1119 | 200 389 69 461 Remotely . | . . . . Salvage Created 998 | . 490 . 508 Parts 78 | . 43 . 35 Haulers Intercepted 1 | . 1 . . Recyclers Shooed . | . . . . Parts Field Recycled . | . . . . Retrieved Matter . | . . . . Parts Self-Destructed 15 | . . . 15 Prevented . | . . . . Kills | -11 -10 -10 -10 ------- Run | Yrd Mat Min Sub Combat Hostiles Destroyed 31 | . 15 . 16 Guns 14 | . 13 . 1 Cannons 2 | . . . 2 AOE 15 | . 2 . 13 Classes Destroyed 7 | . 6 . 1 Worker 1 | . 1 . . Hauler 1 | . 1 . . Operator 1 | . 1 . . Watcher 1 | . 1 . . Swarmer 13 | . 6 . 7 Grunt 9 | . 9 . . Subdweller 9 | . . . 9 Best Kill Streak 5 | . 5 . 5 Combat Bots Only 5 | . 5 . 5 Max Kills in Single Turn 2 | . 2 . 2 Gunslinging . | . . . . Exploded 2 | . 2 . 2 Melee . | . . . . Uniques/NPCs Destroyed . | . . . . Combat | -11 -10 -10 -10 -------- Run | Yrd Mat Min Sub Hostile Shots Fired 155 | . 87 . 68 Missed 39 | . 16 . 23 Damage Taken 1654 | . 725 . 929 Core 261 | . 85 . 176 Absorbed by Shields . | . . . . Core Remaining (%) 100 | 100 . . . Volleys Fired 92 | . 52 . 40 Largest 2 | . 2 . 2 Hottest 115 | . 115 . 100 Shots Fired 159 | . 96 . 63 Gun 129 | . 92 . 37 Cannon 6 | . . . 6 Launcher 24 | . 4 . 20 Special . | . . . . Kinetic 65 | . 28 . 37 Thermal 47 | . 41 . 6 Explosive 24 | . 4 . 20 Electromagnetic 23 | . 23 . . Robot Hit Streak 15 | . 8 . 15 Robot Miss Streak 3 | . 3 . 3 Penetration Max . | . . . . Secondary Targets 4 | . 4 . . Max Gunslinging Chain 1 | . 1 . . Shots Hit Robots 108 | . 60 . 48 Core Hits 61 | . 30 . 31 Critical Kills . | . . . . Critical Parts Destroyed . | . . . . Critical Strikes 2 | . 2 . . Burn 2 | . 2 . . Melee Attacks 46 | . . . 46 Impact . | . . . . Slashing 46 | . . . 46 Piercing . | . . . . Sneak Attacks 1 | . . . 1 Combat Hostiles . | . . . . Follow-up Attacks . | . . . . Damage Inflicted 2455 | . 989 . 1466 Guns 1165 | . 781 . 384 Cannons 141 | . . . 141 Explosions 1109 | . 190 . 919 Melee 22 | . . . 22 Ramming 18 | . 18 . . Kinetic 657 | . 273 . 384 Thermal 485 | . 344 . 141 Explosive 1109 | . 190 . 919 Electromagnetic 164 | . 164 . . Impact . | . . . . Slashing 22 | . . . 22 Piercing . | . . . . Highest Corruption 1 | . 1 1 1 Average Corruption 1 | . 1 1 1 Corruption Purged . | . . . . Corruption Blocked . | . . . . Effects 22 | . 9 1 12 Message Errors 9 | . 2 . 7 Matter Fused 2 | . 1 . 1 Heat Flow Errors 2 | . 1 1 . Energy Discharges 2 | . 2 . . Parts Fused 1 | . . . 1 Data Loss (minor) 1 | . 1 . . Data Loss (major) 2 | . 1 . 1 Misfires 1 | . . . 1 Alerts 1 | . 1 . . Weapon Failures 1 | . . . 1 Overload Shots . | . . . . Overflow Damage 51 | . 4 . 47 Projectiles . | . . . . Explosions 51 | . 4 . 47 Melee . | . . . . Knockbacks . | . . . . Impact . | . . . . Kinetic . | . . . . Secondary . | . . . . Self-Inflicted Damage 273 | . . . 273 Shots 11 | . . . 11 Rammed . | . . . . Targets Rammed 8 | . 8 . . Kicked 8 | . 8 . . Crushed . | . . . . Highest Temperature 259 | . 259 128 9 Average Temperature 64 | . 70 78 4 Received Heat Transfer 372 | . 216 . 156 Siege Activations . | . . . . Robots Corrupted . | . . . . Combat Hostiles . | . . . . Parts Fried 1 | . . . 1 Impact Corruptions . | . . . . Robots Melted . | . . . . Combat Hostiles . | . . . . Parts Melted 5 | . 3 . 2 Heat Transferred 1258 | . 1073 . 185 Parts Sabotaged . | . . . . Parts Stolen . | . . . . Parts Stripped . | . . . . Power Chain Reactions . | . . . . Alert | -11 -10 -10 -10 ------- Run | Yrd Mat Min Sub Peak Influence 197 | . 197 13 . Initial 13 | . . 13 . Average 87 | . 103 13 . Maximum Alert Level . | . . . . Low Security (%) 100 | . 100 100 . Level 1 . | . . . . Level 2 . | . . . . Level 3 . | . . . . Level 4 . | . . . . Level 5 . | . . . . High Security . | . . . . Max Security . | . . . . Squads Dispatched 3 | . 3 . . Investigation 1 | . 1 . . Extermination . | . . . . Reinforcement 2 | . 2 . . Assault . | . . . . Garrison . | . . . . Intercept . | . . . . Searches Triggered . | . . . . Construction Impeded . | . . . . Haulers Reinforced . | . . . . Active Scanning Responses . | . . . . Cargo Convoy Interrupts . | . . . . Stealth | -11 -10 -10 -10 --------- Run | Yrd Mat Min Sub Distress Signals 4 | . 4 . . Communications Jammed . | . . . . Distress Signals . | . . . . Times Spotted 49 | . 26 2 21 Peak Tracking Total 4 | . 4 2 4 Tactical Retreats 2 | . . . 2 Traps | -11 -10 -10 -10 ------- Run | Yrd Mat Min Sub Traps Triggered 2 | . 2 . . Indirectly . | . . . . Trap Hack Attempts . | . . . . Triggered . | . . . . Disarmed . | . . . . Reprogrammed . | . . . . Reused . | . . . . Traps Extracted . | . . . . Installed . | . . . . Triggered . | . . . . Machines | -11 -10 -10 -10 ---------- Run | Yrd Mat Min Sub Machines Disabled 1 | . 1 . . Max in Single Turn 1 | . 1 . . Machines Repaired . | . . . . Machines Dismantled . | . . . . Machines Sabotaged . | . . . . Overloaded Fab Kills . | . . . . Hacking | -11 -10 -10 -10 --------- Run | Yrd Mat Min Sub Machines Accessed 4 | . 4 . . Terminals 4 | . 4 . . Fabricators . | . . . . Repair Stations . | . . . . Recycling Units . | . . . . Scanalyzers . | . . . . Garrison Access . | . . . . Total Hacks 8 | . 8 . . Successful 2 | . 2 . . Failed 5 | . 5 . . Catastrophic 1 | . 1 . . Database Lockouts 1 | . 1 . . Manual 8 | . 8 . . Terminals 8 | . 8 . . Fabricators . | . . . . Repair Stations . | . . . . Recycling Units . | . . . . Scanalyzers . | . . . . Garrison Access . | . . . . Terminal Hacks 2 | . 2 . . Robot Analysis 2 | . 2 . . Fabricator Hacks . | . . . . Repair Station Hacks . | . . . . Recycling Unit Hacks . | . . . . Scanalyzer . | . . . . Garrison Access Hacks . | . . . . Unauthorized Hacks . | . . . . Terminals . | . . . . Fabricators . | . . . . Repair Stations . | . . . . Recycling Units . | . . . . Scanalyzers . | . . . . Garrison Access . | . . . . Data Cores Recovered . | . . . . Used . | . . . . Hacking Detections 3 | . 3 . . Full Trace Events . | . . . . Feedback Events . | . . . . Feedback Blocked . | . . . . Robot Schematics Acquired . | . . . . Robots Built . | . . . . Authchips . | . . . . Time . | . . . . Total Robot Build Rating . | . . . . Part Schematics Acquired . | . . . . Parts Built . | . . . . Authchips . | . . . . Time . | . . . . Total Part Build Rating . | . . . . Parts Repaired . | . . . . Time . | . . . . Parts Recycled . | . . . . Recycled Matter . | . . . . Retrieved Matter . | . . . . Retrieved Components . | . . . . Parts Scanalyzed . | . . . . Part Schematics Acquired . | . . . . Parts Damaged . | . . . . Bothacking | -11 -10 -10 -10 ------------ Run | Yrd Mat Min Sub Used RIF Installer . | . . . . Robots Hacked . | . . . . Non-combat . | . . . . Combat . | . . . . Robot Hacks Applied . | . . . . Relay Couplers Released . | . . . . Fabnet Peak Effective % . | . . . . Robots Rewired . | . . . . Allies Hacked . | . . . . Hacks Repelled . | . . . . Allies | -11 -10 -10 -10 -------- Run | Yrd Mat Min Sub Total Allies . | . . . . Largest Group . | . . . . Highest-Rated Group . | . . . . Highest-Rated Ally . | . . . . Total Orders . | . . . . Ally Attacks . | . . . . Total Damage . | . . . . Kills . | . . . . Allies Corrupted . | . . . . Allies Melted . | . . . . Intel | -11 -10 -10 -10 ------- Run | Yrd Mat Min Sub Robot Analysis Total 2 | . 2 . . Derelict Logs Recovered 1 | . . . 1 Drone Launches . | . . . . Drone Recoveries . | . . . . Exploration | -11 -10 -10 -10 ------------- Run | Yrd Mat Min Sub Turns Passed 3959 | . 1655 355 1949 Spaces Moved 1784 | 1 787 90 906 Core . | . . . . Treads . | . . . . Legs 1784 | 1 787 90 906 Wheels . | . . . . Hover . | . . . . Flight . | . . . . Fastest Speed 120 | 120 120 190 120 Average Speed 182 | 120 181 190 183 Slowest Speed 190 | 120 190 190 190 Overloaded Moves . | . . . . Propulsion Burnouts . | . . . . Robots Hopped . | . . . . Cave-ins Triggered . | . . . . Exploration Rate (%) 46 | 2 97 30 57 Regions Visited 3 Branch Regions 2 Pre-discovered Areas 1 | . . . 1 Known Exits Taken . | . . . . Unknown Exits Taken 3 | 1 1 1 . Scrap Searched 5 | . . . 5 Spaces Dug 12 | . . . 12 Terrain Destroyed 102 | . 17 . 85 Melee . | . . . . Projectile . | . . . . AOE 102 | . 17 . 85 Terrain Rammed . | . . . . Walls Destroyed . | . . . . Machines Disabled . | . . . . Actions | -11 -10 -10 -10 --------- Run | Yrd Mat Min Sub Total 2227 | . 910 275 1042 Wait 225 | . 34 182 9 Move 1781 | . 786 89 906 Hop . | . . . . Pick Up 13 | . 9 . 4 Fast Attach 5 | . 2 . 3 Attach 5 | . 3 . 2 Detach . | . . . . Swap 29 | . 11 2 16 Drop 17 | . 5 2 10 Fire 92 | . 52 . 40 Melee 46 | . . . 46 Ram . | . . . . Kick 8 | . 8 . . Crush . | . . . . Escape Stasis . | . . . . Rewire . | . . . . Trap . | . . . . Miscellaneous 6 | . . . 6 Route ------- -11/Scrapyard -10/Materials (discovered 4 exits: [*Mat x3] / [*Min]) -10/Mines -10/Subcaves (discovered 1 exit: [*Mat]) History --------- Turn | Location | Event 1 | -11/Scrapyard | Discovered new exit (range 0) 1 | -11/Scrapyard | Entered Materials 315 | -10/Materials | Build established: Mutant 347 | -10/Materials | Discovered new exit (range 10) 559 | -10/Materials | Discovered new exit (range 7) 784 | -10/Materials | Build established: Scavenger-Mutant 832 | -10/Materials | Central database locked down 914 | -10/Materials | Discovered new exit (range 9) 1161 | -10/Materials | Discovered new exit (range 6) 1656 | -10/Materials | Entered Mines 1706 | -10/Mines | Met a Derelict bent on vengeance 2005 | -10/Mines | Discovered new exit (range 4) 2011 | -10/Mines | Entered Subcaves 2033 | -10/Subcaves | A swath of the cavern ceiling suddenly collapsed 2318 | -10/Subcaves | Ambushed by Subdwellers from Twisted Machinery 2340 | -10/Subcaves | Discovered new exit (range 15) 2865 | -10/Subcaves | Core integrity fell below 50% 3356 | -10/Subcaves | Build established: Mutant 3485 | -10/Subcaves | Shifting Twisted Machinery released Ripper 3486 | -10/Subcaves | Shifting Twisted Machinery released Sub. Laser 3637 | -10/Subcaves | Shifting Twisted Machinery released Scrap Shield 3638 | -10/Subcaves | Shifting Twisted Machinery released Shrapnel Trap 3944 | -10/Subcaves | Disturbed a concealed Subdweller 3956 | -10/Subcaves | Core integrity fell below 20% 3960 | -10/Subcaves | Destroyed self with Grenade Launcher Last Messages --------------- 03920_ Found Sub. Laser. 03920_ Found 26 Matter. 03921_ Acquired 24 matter. 03924_ Searching scrap... 03924_ Found Humpback. 03924_ Found Sub. Monowheel. 03924_ Found 26 Matter. 03925_ Searching scrap... 03925_ Found Sub. Machine Gun. 03925_ Found 23 Matter. 03930_ Searching scrap... 03930_ Found Sub. Machine Gun. 03930_ Found 22 Matter. 03944_ 26-C98(R) angrily emerges from the Twisted Machinery. 03955_ Grenade Launcher destroyed. 03955_ Destroyed Grenade Launcher. 03958_ Destroyed Scrap Shield. 03960_ 26-C98(R) destroyed. 03960_ Aluminum Leg destroyed. 03960_ Destroyed Aluminum Leg. Map ----- +----------------------------------------------------+ | ???### "" ##??????????????????### """##??????? | | ?????# ##??????????????????## " ##???????? | | ?????## ##" #??????????????????# " #????????? | | ??????#########??????????????????## ##???????? | | ??????????????????????????????????# " "##??????? | | ??????????????????????????????????## <" "##?????? | | ???????????????????????????????????##" "#?????? | | ????????????????????????????????????## "#?????? | | ?????????????????????????????????????# ##?????? | | ?????????????????????????????????????######??????? | | ?????????????????????????????????????????????????? | | ?????????????????????????????????????????????????? | | ?????????????????????????????????????????????????? | | #????????????????????????????????????????????????? | | #????????????????????????????????????????????????? | | #?????????????????????????#####??????????????????? | | ?????????????????????????##[#[##?????????????????? | | ?????????????????????????#%!%=%#?????????????????? | | ?????????????????????????###[<##?????????????????? | | ????#?????????????????#####%/####?######?????????? | | ### ????????????????## #& ### #?????????? | | ??????????????## < #?????????? | | ???????????????# " ## #?????????? | | ?????????????????# % "" #### ##?????????? | | #??????????????????# / "##??##" ###???????? | | ????##??????????????# # @ ##????# #???????? | | ??## #??????????????#?# # #?????## ""#???????? | | ### #???????????????##########??????#" "#???????? | | # #????????????????# #?## ##????##"[##???????? | | #????????????????# ## ###### ##???????? | | #????????????????# ""##??????? | | # ##???????????????# ###"#"#""""" #??????? | | ## #???????????????## #?######"" #??????? | | # #????????????????#### ##??##"" #??????? | | """ #??????????????????## ####" ##??????? | | """ ##?????????????????## """## ##??????? | | ##??????????????????# """" #### ##?????? | | " ##???????????????????# " #### #?????? | | "##???????????????????## ## ##"" #?????? | | ##???????????????????## ###### #?????? | | #???????????????????## #####???# # #?????? | | #?????????????????### ## ###?# & # ##?????? | | ######????######### #?# &&% ####??????? | | # # ###### # #### & #????????? | | # #### # &! #????????? | | % % #### #### ! #????????? | | % #??###### #????????? | | # ###???????# [ ###??????? | | ####% ####?????? &% "# #??????? | | ### #??????? %!% ### #??????? | +----------------------------------------------------+ Best States ------------- Heat Dissipation 39 Energy Generation 10 Energy Capacity 250 Matter Stores 300 Matter Capacity 300 Sight Range 16 Terrain Scan Density 10 Armor Coverage 800 Evasion (%) 55 Item Schematics ----------------- None Robot Schematics ------------------ None Fabricated ------------ Nothing Alien Tech Used ----------------- None Achievements -------------- None Challenges ------------ None Game ------ Seed ConcussiveLatentProjector Manual? 0 Play Time 00:22:30 Cumulative 165.6 hours Start 2024.03.18 @ 18:54:20 End 2024.03.18 @ 19:09:07 Sessions 1 Manual Loads 0 Difficulty Rogue Special Mode None Game No. 230 Rogue 230 Adventurer 0 Explorer 0 Win Type - Total 3 Types 2/0/0/1/0/0/0/0/0 Lore% 63 Gallery% 72 Achievement% 65 Wizard Run 0 Options --------- Layout 0 ASCII 0 Keyboard 0 Movement Numpad Keybinds 0 Fullscreen 1 Font 18/SmallcapsGlow Map View 76x50 Zoom Use 0% Tactical HUD 1 Map Filters NONE Filters NONE Steam 1 RUN: 2dc6c99e-b77f-4b4a-9698-aa2ba409ee0e